fUST/lending_fUST_20251021
["ID","MTS","AMOUNT","RATE_DAILY","PERIOD"]
[391983246,1761055835882,-500.71478119,0.00045273,10]
[391983247,1761055835891,-500.0,0.00045479,30]
[391983248,1761055835900,-500.0,0.00045479,20]
[391983249,1761055835909,-500.0,0.00045479,7]
[391983250,1761055835919,-3514.21,0.00045479,2]
[391983251,1761055835928,-500.0,0.00045479,120]
[391983252,1761055835938,-500.0,0.00045479,120]
[391983253,1761055835947,-778.16,0.00045479,30]
[391983254,1761055835957,-500.0,0.00045479,7]
[391983255,1761055835967,-1392.76,0.00045479,3]
[391983256,1761055835976,-500.0,0.00045479,120]
[391983257,1761055835985,-911.72,0.000456,14]
[391983258,1761055835994,-500.0,0.00045753,30]
[391983259,1761055836003,-500.0,0.00045753,20]
[391983260,1761055836013,-500.0,0.00045753,7]
[391983261,1761055836024,-3514.21,0.00045753,2]
[391983262,1761055836034,-500.0,0.00045753,120]
[391983263,1761055836044,-500.0,0.00045753,120]
[391983264,1761055836054,-778.16,0.00045753,30]
[391983265,1761055836063,-500.0,0.00045753,7]
[391983266,1761055836075,-1392.76,0.00045753,3]
[391983267,1761055836084,-500.0,0.00045753,120]
[391983268,1761055836093,-800.0,0.00045916,14]
[391983269,1761055836102,-160.93696,0.00045936,20]
[391983270,1761055836111,-163.252403,0.00045936,20]
[391983271,1761055836121,-321.65264,0.00046,120]
[391983272,1761055836136,-500.0,0.00046027,20]
[391983273,1761055836146,-500.0,0.00046027,7]
[391983274,1761055836156,-3514.21,0.00046027,2]
[391983275,1761055836166,-500.0,0.00046027,120]
[391983276,1761055836175,-500.0,0.00046027,120]
[391983277,1761055836184,-778.16,0.00046027,30]
[391983278,1761055836194,-500.0,0.00046027,7]
[391983279,1761055836205,-1392.76,0.00046027,3]
[391983280,1761055836214,-500.0,0.00046027,120]
[391983281,1761055836224,-800.0,0.00046141,14]
[391983282,1761055836235,-800.0,0.00046217,14]
[391983283,1761055836244,-500.0,0.00046301,20]
[391983284,1761055836255,-560.37279844,0.00046301,7]
[391983285,1761055836264,-3514.21,0.00046301,2]
[391983286,1761055836273,-500.0,0.00046301,120]
[391983287,1761055836283,-500.0,0.00046301,120]
[391983288,1761055836293,-778.16,0.00046301,30]
[391983289,1761055836302,-500.0,0.00046301,7]
[391983290,1761055836311,-1392.76,0.00046301,3]
[391983291,1761055836320,-500.0,0.00046301,120]
[391983292,1761055836332,-500.0,0.00046575,20]
[391983293,1761055836341,-3514.21,0.00046575,2]
[391983294,1761055836350,-500.0,0.00046575,120]
[391983295,1761055836359,-500.0,0.00046575,120]
[391983296,1761055836369,-778.16,0.00046575,30]
[391983297,1761055836378,-500.0,0.00046575,7]
[391983298,1761055836387,-1392.76,0.00046575,3]
[391983299,1761055836396,-500.0,0.00046575,120]
[391983300,1761055836405,-1000.0,0.00046616,8]
[391983301,1761055836414,-500.0,0.00046849,20]
[391983302,1761055836423,-3514.21,0.00046849,2]
[391983303,1761055836432,-500.0,0.00046849,120]
[391983304,1761055836441,-500.0,0.00046849,120]
[391983305,1761055836450,-778.16,0.00046849,30]
[391983306,1761055836459,-500.0,0.00046849,7]
[391983307,1761055836468,-1392.76,0.00046849,3]
[391983308,1761055836477,-500.0,0.00046849,120]
[391983309,1761055836486,-17264.6190061,0.00047,2]
[391983310,1761055836495,-800.0,0.00047047,14]
[391983311,1761055836503,-515.465322,0.0004711,2]
[391983312,1761055836512,-500.0,0.00047123,20]
[391983313,1761055836521,-3514.21,0.00047123,2]
[391983314,1761055836530,-500.0,0.00047123,120]
[391983315,1761055836539,-500.0,0.00047123,120]
[391983316,1761055836548,-778.16,0.00047123,30]
[391983317,1761055836557,-500.0,0.00047123,7]
[391983318,1761055836567,-1392.76,0.00047123,3]
[391983319,1761055836577,-500.0,0.00047123,120]
[391983320,1761055836586,-800.0,0.00047179,14]
[391983321,1761055836594,-983.0,0.00047263,2]
[391983322,1761055836603,-632.0,0.00047263,2]
[391983323,1761055836613,-2164.0,0.00047263,2]
[391983324,1761055836622,-411.0,0.00047263,2]
[391983325,1761055836631,-411.0,0.00047263,2]
[391983326,1761055836640,-800.0,0.00047283,14]
[391983327,1761055836650,-800.0,0.00047284,14]
[391983328,1761055836659,-800.0,0.00047315,14]
[391983329,1761055836668,-500.0,0.00047397,20]
[391983330,1761055836677,-3514.21,0.00047397,2]
[391983331,1761055836687,-500.0,0.00047397,120]
[391983332,1761055836696,-500.0,0.00047397,120]
[391983333,1761055836705,-778.16,0.00047397,30]
[391983334,1761055836715,-500.0,0.00047397,7]
[391983335,1761055836724,-1392.76,0.00047397,3]
[391983336,1761055836734,-500.0,0.00047397,120]
[391983337,1761055836743,-3766.6,0.00047401,2]
[391983338,1761055836752,-177.0,0.000475,2]
[391983339,1761055836761,-800.0,0.00047558,14]
[391983340,1761055836770,-500.0,0.00047671,20]
[391983341,1761055836778,-3514.21,0.00047671,2]
[391983342,1761055836787,-500.0,0.00047671,120]
[391983343,1761055836796,-502.74386,0.00047671,120]
[391983344,1761055836806,-778.16,0.00047671,30]
[391983345,1761055836815,-500.0,0.00047671,7]
[391983346,1761055836824,-1392.76,0.00047671,3]
[391983347,1761055836833,-500.0,0.00047671,120]
[391983348,1761055836842,-1714.7872311,0.00047712,2]
[391983349,1761055836852,-42821.3866747,0.00047712,2]
[391983350,1761055836861,-151.8062427,0.00047712,2]
[391983351,1761055836870,-2117.7844625,0.00047712,2]
[391983352,1761055836880,-454.0592688,0.00047712,2]
[391983353,1761055836890,-800.0,0.00047736,14]
[391983354,1761055836899,-200.0,0.00047835,120]
[391983355,1761055836910,-200.0,0.00047835,120]
[391983356,1761055836921,-500.0,0.00047945,20]
[391983357,1761055836931,-3514.21,0.00047945,2]
[391983358,1761055836941,-500.0,0.00047945,120]
[391983359,1761055836951,-778.16,0.00047945,30]
[391983360,1761055836960,-500.0,0.00047945,7]
[391983361,1761055836969,-1392.76,0.00047945,3]
[391983362,1761055836978,-500.0,0.00047945,120]
[391983363,1761055836989,-160.93696,0.00048,2]
[391983364,1761055836998,-163.252403,0.00048,2]
[391983365,1761055837007,-600.0,0.00048,2]
[391983366,1761055837017,-1900.0,0.00048082,60]
[391983367,1761055837026,-160.93696,0.000482,14]
[391983368,1761055837035,-163.252403,0.000482,14]
[391983369,1761055837044,-500.0,0.00048219,20]
[391983370,1761055837053,-3514.21,0.00048219,2]
[391983371,1761055837062,-500.0,0.00048219,120]
[391983372,1761055837071,-778.16,0.00048219,30]
[391983373,1761055837081,-500.0,0.00048219,7]
[391983374,1761055837090,-500.0,0.00048219,120]
[391983375,1761055837099,-8950.31365914,0.00048275,60]
[391983376,1761055837109,-4067.11001192,0.00048299,60]
[391983377,1761055837118,-250.0,0.00048299,7]
[391983378,1761055837131,-496.47127164,0.00048299,7]
[391983379,1761055837140,-514.84070869,0.00048299,7]
[391983380,1761055837149,-533.88981491,0.00048299,7]
[391983381,1761055837159,-553.64373807,0.00048299,7]
[391983382,1761055837169,-574.12855637,0.00048299,7]
[391983383,1761055837179,-595.37131296,0.00048299,7]
[391983384,1761055837188,-617.40005154,0.00048299,7]
[391983385,1761055837199,-640.24385345,0.00048299,7]
[391983386,1761055837208,-663.93287602,0.00048299,7]
[391983387,1761055837218,-688.49839244,0.00048299,7]
[391983388,1761055837227,-713.97283296,0.00048299,7]
[391983389,1761055837237,-740.38982778,0.00048299,7]
[391983390,1761055837246,-767.7842514,0.00048299,7]
[391983391,1761055837255,-608.12385985,0.00048299,7]
[391983392,1761055837265,-500.0,0.00048299,7]
[391983393,1761055837274,-833924.56036332,0.000483,7]
[391983402,1761055837962,-1408.4,0.00035803,10]
[391983404,1761055837973,-56225.11909355,0.000483,7]
[391983405,1761055837983,-150.0,0.000483,20]
[391983406,1761055837992,-150.0,0.000483,2]
[391983407,1761055838002,-269.56453234,0.00048473,28]
[391983408,1761055838011,-500.0,0.00048493,20]
[391983409,1761055838020,-3514.21,0.00048493,2]
[391983410,1761055838030,-500.0,0.00048493,120]
[391983411,1761055838040,-778.16,0.00048493,30]
[391983412,1761055838050,-500.0,0.00048493,7]
[391983413,1761055838060,-440.7019209,0.00048493,120]
[391983414,1761055838069,-600.0,0.000485,2]
[391983415,1761055838080,-1804.32,0.000485,14]
[391983416,1761055838089,-3705.34613171,0.00048509,109]
[391983417,1761055838099,-1900.0,0.0004863,60]
[391983418,1761055838109,-500.0,0.00048767,20]
[391983419,1761055838123,-3514.21,0.00048767,2]
[391983420,1761055838133,-500.0,0.00048767,120]
[391983421,1761055838142,-778.16,0.00048767,30]
[391983422,1761055838152,-213.2060973,0.00048767,7]
[391983423,1761055838162,-263082.78175457,0.000488,120]
[391983424,1761055838171,-151.0,0.000488,120]
[391983425,1761055838181,-151.0,0.000488,120]
[391983426,1761055838190,-151.0,0.000488,120]
[391983427,1761055838201,-151.0,0.000488,120]
[391983428,1761055838211,-151.0,0.000488,120]
[391983429,1761055838220,-151.0,0.000488,120]
[391983430,1761055838230,-151.0,0.000488,120]
[391983431,1761055838239,-151.754635,0.000488,120]
[391983432,1761055838249,-151.0,0.000488,120]
[391983433,1761055838259,-153.62292,0.000488,120]
[391983434,1761055838269,-151.000001,0.000488,2]
[391983435,1761055838278,-154.834159,0.000488,120]
[391983436,1761055838287,-152.923304,0.000488,120]
[391983437,1761055838297,-151.0,0.000488,120]
[391983438,1761055838307,-151.0,0.000488,120]
[391983439,1761055838316,-151.0,0.000488,120]
[391983440,1761055838327,-153.541629,0.000488,120]
[391983441,1761055838338,-151.0,0.000488,120]
[391983442,1761055838347,-152.012953,0.000488,30]
[391983443,1761055838356,-151.0,0.000488,120]
[391983444,1761055838366,-151.0,0.000488,120]
[391983445,1761055838375,-198.05192,0.000488,120]
[391983446,1761055838386,-151.0,0.000488,120]
[391983447,1761055838396,-151.0,0.000488,120]
[391983448,1761055838406,-151.0,0.000488,120]
[391983449,1761055838415,-226.489352,0.000488,120]
[391983450,1761055838425,-151.0,0.000488,120]
[391983451,1761055838436,-151.0,0.000488,14]
[391983452,1761055838447,-151.0,0.000488,14]
[391983453,1761055838457,-151.0,0.000488,14]
[391983454,1761055838469,-5848.02398673,0.000489,2]
[391983455,1761055838480,-220.43655563,0.0004891,120]
[391983456,1761055838491,-254.26083572,0.00049,120]
[391983457,1761055838502,-1251.63503556,0.00049,60]
[391983458,1761055838512,-44950.0,0.00049,120]
[391983459,1761055838523,-311.87881253,0.00049,15]
[391983460,1761055838533,-600.0,0.00049,2]
[391983461,1761055838542,-160.0,0.00049,5]
[391983462,1761055838552,-3514.21,0.00049041,2]
[391983463,1761055838564,-500.0,0.00049041,120]
[391983464,1761055838574,-778.16,0.00049041,30]
[391983465,1761055838590,-1900.0,0.00049178,60]
[391983466,1761055838600,-911.72,0.000492,14]
[391983467,1761055838611,-150.0,0.000493,2]
[391983468,1761055838621,-150.0,0.00049315,30]
[391983469,1761055838631,-500.0,0.00049315,120]
[391983470,1761055838640,-3514.21,0.00049315,2]
[391983471,1761055838650,-778.16,0.00049315,30]
[391983472,1761055838659,-500.0,0.00049315,120]
[391983473,1761055838669,-500.0,0.00049315,120]
[391983474,1761055838679,-500.0,0.00049315,120]
[391983475,1761055838689,-500.0,0.00049315,120]
[391983476,1761055838698,-500.0,0.00049315,120]
[391983477,1761055838708,-500.0,0.00049315,120]
[391983478,1761055838717,-500.0,0.00049315,120]
[391983479,1761055838727,-500.0,0.00049315,120]
[391983480,1761055838738,-500.0,0.00049315,120]
[391983481,1761055838747,-500.0,0.00049315,120]
[391983482,1761055838757,-500.0,0.00049315,120]
[391983483,1761055838768,-500.0,0.00049315,120]
[391983484,1761055838778,-2252.22977771,0.00049344,2]
[391983485,1761055838788,-9309.03101266,0.00049368,120]
[391983486,1761055838798,-250.0,0.00049399,120]
[391983487,1761055838808,-478.75725327,0.00049399,120]
[391983488,1761055838818,-500.0,0.00049399,120]
[391983489,1761055838832,-250.0,0.00049443,30]
[391983490,1761055838843,-461.67526834,0.00049443,30]
[391983491,1761055838853,-245.03729301,0.00049443,30]
[391983492,1761055838863,-500.0,0.00049443,30]
[391983493,1761055838873,-415346.3247,0.00049444,30]
[391983494,1761055838883,-198.479101,0.00049444,2]
[391983495,1761055838893,-151.0,0.00049444,120]
[391983496,1761055838910,-151.0,0.00049444,120]
[391983497,1761055838919,-151.0,0.00049444,120]
[391983498,1761055838930,-151.0,0.00049444,120]
[391983499,1761055838939,-151.0,0.00049444,7]
[391983500,1761055838949,-151.0,0.00049444,120]
[391983501,1761055838958,-157.120058,0.00049444,120]
[391983502,1761055838969,-151.0,0.00049444,120]
[391983503,1761055838983,-161.295173,0.00049444,120]
[391983504,1761055838995,-245.301205,0.00049444,120]
[391983505,1761055839006,-155.346384,0.00049444,120]
[391983506,1761055839017,-154.286573,0.00049444,120]
[391983507,1761055839027,-277.361074,0.00049444,120]
[391983508,1761055839182,-151.0,0.00049444,15]
[391983509,1761055839193,-151.0,0.00049444,15]
[391983510,1761055839205,-151.0,0.00049444,15]
[391983511,1761055839215,-467391.93497224,0.00049495,60]
[391983520,1761055839949,-3255.42888086,0.00034739,35]
[391983521,1761055839959,-21731.35380833,0.00049495,60]
[391983522,1761055839970,-21976.0,0.00049495,60]
[391983523,1761055840007,-240299.11178253,0.00049495,60]
[391983524,1761055840016,-52.54944381,0.00049495,120]
[391983586,1761055843156,-2232.4530954,0.000487,2]
[391983588,1761055843167,-557.948551,0.000488,120]
[391983591,1761055843179,-126.30602425,0.00049,2]
[391983865,1761055846123,-500.0,0.00032643,5]
[391983867,1761055846137,-1000.0,0.00033191,5]
[391983869,1761055846146,-1500.0,0.00033739,5]
[391983871,1761055846156,-2000.0,0.00034287,5]
[391983873,1761055846166,-2500.0,0.00034835,5]
[391983875,1761055846176,-3000.0,0.00035383,5]
[391983877,1761055846186,-233.0115357,0.00035931,5]
[391983879,1761055846195,-557.948551,0.000488,120]
[391983881,1761055846206,-2106.14707112,0.00049,2]
[391983883,1761055846216,-2232.45309537,0.000493,2]
[391983885,1761055846225,-100.70334019,0.00049495,120]
[391983887,1761055846235,-151.0,0.00049495,120]
[391983889,1761055846245,-151.0,0.00049495,120]
[391983891,1761055846255,-151.0,0.00049495,120]
[391983893,1761055846264,-169.996978,0.00049495,7]
[391983896,1761055846274,-153.648193,0.00049495,120]
[391983898,1761055846284,-151.0,0.00049495,120]
[391983900,1761055846294,-151.0,0.00049495,15]
[391983902,1761055846303,-151.0,0.00049495,15]
[391983904,1761055846312,-235.588398,0.00049495,15]
[391983906,1761055846321,-151.0,0.00049495,120]
[391983907,1761055846331,-151.0,0.00049495,120]
[391983909,1761055846343,-152.19683,0.00049495,120]
[391983911,1761055846351,-151.0,0.00049495,120]
[391983913,1761055846361,-299.325318,0.00049495,120]
[391983914,1761055846373,-151.0,0.00049495,120]
[391983916,1761055846383,-151.0,0.00049495,120]
[391983918,1761055846392,-151.0,0.00049495,120]
[391983920,1761055846401,-280.178679,0.00049495,120]
[391983922,1761055846410,-151.0,0.00049495,120]
[391983924,1761055846419,-151.0,0.00049495,120]
[391983926,1761055846428,-151.0,0.00049495,120]
[391983928,1761055846438,-151.0,0.00049495,120]
[391983930,1761055846447,-151.0,0.00049495,120]
[391983932,1761055846456,-151.0,0.00049495,120]
[391983934,1761055846465,-182.731289,0.00049495,120]
[391983936,1761055846475,-151.0,0.00049495,14]
[391983938,1761055846484,-151.0,0.00049495,14]
[391983940,1761055846493,-151.0,0.00049495,14]
[391983942,1761055846502,-150.0,0.00049495,120]
[391983944,1761055846512,-557.948551,0.00049495,120]
[391983946,1761055846521,-557.948551,0.00049495,120]
[391983948,1761055846530,-359.17361962,0.000495,2]
[391983950,1761055846542,-240.82638038,0.000495,2]
[391983952,1761055846552,-150.0,0.00049589,30]
[391983954,1761055846562,-198.07861962,0.00049589,120]
[391983956,1761055846573,-301.92138038,0.00049589,120]
[391983958,1761055846583,-383.17532546,0.00049589,2]
[391983960,1761055846595,-3131.03467454,0.00049589,2]
[391983962,1761055846604,-778.16,0.00049589,30]
[391983964,1761055846613,-500.0,0.000496,60]
[391983966,1761055846623,-500.0,0.000496,60]
[391983967,1761055846631,-500.0,0.000496,60]
[391983968,1761055846641,-500.0,0.000496,60]
[391983969,1761055846651,-1900.0,0.00049726,60]
[391983970,1761055846661,-527.09343989,0.00049745,60]
[391983971,1761055846670,-250.0,0.00049745,60]
[391983972,1761055846679,-445.202766,0.00049745,60]
[391983973,1761055846689,-162.380719,0.00049745,60]
[391983974,1761055846699,-500.0,0.00049745,60]
[391983975,1761055846708,-150.0,0.00049863,30]
[391983976,1761055846717,-500.0,0.00049863,120]
[391983977,1761055846727,-3514.21,0.00049863,2]
[391983978,1761055846736,-778.16,0.00049863,30]
[391983979,1761055846745,-1888.0,0.00049999,30]
[391983980,1761055846755,-250.0,0.00049999,30]
[391983981,1761055846765,-429.318,0.00049999,30]
[391983982,1761055846774,-156.587,0.00049999,30]
[391983983,1761055846783,-500.0,0.00049999,30]
[391983984,1761055846792,-665.81114798,0.0005,2]
[391983985,1761055846802,-40082.9619696,0.0005,2]
[391983986,1761055846811,-3276.47572255,0.0005,5]
[391983988,1761055846820,-199.0,0.0005,7]
[391983990,1761055846829,-200.0,0.0005,120]
[391983992,1761055846840,-221.06935234,0.0005,20]
[391983994,1761055846850,-1177.02229891,0.0005,120]
[391983996,1761055846859,-532.03216747,0.0005,10]
[391983998,1761055846870,-551.33953088,0.0005,120]
[391984000,1761055846880,-2003.19881294,0.0005,120]
[391984002,1761055846889,-160.93696,0.0005,20]
[391984004,1761055846898,-151.1452,0.0005,20]
[391984006,1761055846907,-163.252403,0.0005,20]
[391984008,1761055846916,-162.1039,0.0005,30]
[391984010,1761055846925,-162.1039,0.0005,30]
[391984012,1761055846934,-600.0,0.0005,2]
[391984014,1761055846943,-215.135528,0.0005,20]
[391984016,1761055846952,-500.0,0.00050094,30]
[391984018,1761055846961,-508.46719579,0.00050094,30]
[391984020,1761055846971,-150.0,0.00050136,30]
[391984022,1761055846979,-500.0,0.00050136,120]
[391984024,1761055846988,-3514.35667468,0.00050136,2]
[391984026,1761055846997,-778.28074347,0.00050136,30]
[391984028,1761055847006,-983.0,0.00050263,120]
[391984030,1761055847015,-632.0,0.00050263,120]
[391984032,1761055847025,-2164.0,0.00050263,120]
[391984034,1761055847034,-150.0,0.0005041,30]
[391984036,1761055847044,-500.0,0.0005041,120]
[391984038,1761055847053,-600.0,0.000505,2]
[391984040,1761055847063,-250.0,0.00050599,120]
[391984042,1761055847073,-414.0,0.00050599,120]
[391984044,1761055847082,-151.0,0.00050599,120]
[391984046,1761055847093,-500.0,0.00050599,120]
[391984048,1761055847103,-500.0,0.000506,30]
[391984050,1761055847112,-500.0,0.000506,30]
[391984052,1761055847125,-500.0,0.000506,30]
[391984054,1761055847134,-500.0,0.000506,60]
[391984056,1761055847143,-189.28462636,0.00050684,30]
[391984058,1761055847153,-500.0,0.00050684,120]
[391984060,1761055847162,-1804.32,0.000508,14]
[391984062,1761055847172,-500.0,0.000508,60]
[391984064,1761055847182,-1900.0,0.00050822,60]
[391984066,1761055847191,-1000.0,0.000509,120]
[391984068,1761055847201,-1060.0,0.000509,14]
[391984070,1761055847210,-247.062728,0.00050958,120]
[391984072,1761055847219,-1173.66,0.0005099,10]
[391984074,1761055847228,-1000.0,0.00051,120]
[391984076,1761055847237,-3000.0,0.00051,85]
[391984078,1761055847246,-911.72,0.00051,14]
[391984080,1761055847256,-500.0,0.00051,60]
[391984082,1761055847266,-864.25135992,0.00051,2]
[391984084,1761055847275,-3000.0,0.0005101,85]
[391984086,1761055847284,-3000.0,0.0005102,85]
[391984088,1761055847294,-151.0,0.0005102,60]
[391984090,1761055847303,-154.160189,0.0005102,120]
[391984092,1761055847312,-154.160189,0.0005102,120]
[391984094,1761055847321,-154.160189,0.0005102,120]
[391984097,1761055847331,-154.160189,0.0005102,120]
[391984099,1761055847343,-3000.0,0.0005103,85]
[391984101,1761055847353,-3000.0,0.0005104,85]
[391984103,1761055847363,-3000.0,0.0005105,85]
[391984105,1761055847372,-3000.0,0.0005106,85]
[391984107,1761055847382,-3000.0,0.0005107,85]
[391984109,1761055847391,-333.37,0.00051072,120]
[391984111,1761055847400,-3251.855277,0.0005108,85]
[391984113,1761055847409,-500.0,0.000512,120]
[391984115,1761055847418,-500.0,0.000512,60]
[391984117,1761055847427,-200.0,0.00051372,120]
[391984119,1761055847437,-500.0,0.000514,30]
[391984121,1761055847446,-150.0,0.000515,120]
[391984123,1761055847456,-1900.0,0.00051918,60]
[391984125,1761055847466,-1000.0,0.00051999,120]
[391984127,1761055847476,-200.0,0.00052,120]
[391984129,1761055847485,-1000.0,0.00052,120]
[391984131,1761055847495,-500.0,0.000522,120]
[391984133,1761055847504,-168.63598432,0.00052433,30]
[391984135,1761055847514,-762.555276,0.00052632,2]
[391984137,1761055847523,-1000.0,0.00053,120]
[391984139,1761055847532,-500.0,0.00053,120]
[391984141,1761055847541,-1900.0,0.00053014,60]
[391984144,1761055847551,-500.0,0.0005313,30]
[391984145,1761055847561,-500.0,0.0005313,30]
[391984148,1761055847570,-500.0,0.000532,120]
[391984150,1761055847580,-979.0,0.00053263,120]
[391984152,1761055847593,-632.0,0.00053263,120]
[391984154,1761055847602,-2164.0,0.00053263,120]
[391984156,1761055847611,-1613.27,0.000533,14]
[391984158,1761055847621,-1000.0,0.000539,120]
[391984160,1761055847630,-2142.0,0.0005397,120]
[391984162,1761055847641,-2142.0,0.0005398,120]
[391984164,1761055847651,-246549.70005725,0.00053989,120]
[391984166,1761055847661,-2142.0,0.0005399,120]
[391984168,1761055847671,-1000.0,0.00054,120]
[391984170,1761055847680,-200.0,0.00054,120]
[391984172,1761055847689,-680.59746153,0.00054,120]
[391984174,1761055847699,-500.0,0.00054,120]
[391984176,1761055847708,-1060.0,0.00054,14]
[391984178,1761055847717,-1900.0,0.0005411,60]
[391984180,1761055847726,-500.0,0.000542,120]
[391984182,1761055847735,-220.43,0.00054344,120]
[391984184,1761055847744,-200.73278272,0.00054443,60]
[391984186,1761055847753,-162.58942812,0.00054443,30]
[391984188,1761055847763,-238916.5142,0.00054444,30]
[391984190,1761055847772,-1522695.29271894,0.00054444,30]
[391984195,1761055847807,-436.34609954,0.00054444,30]
[391984399,1761055850310,1813.0,0.00030137,120]
[391984406,1761056075606,257.22,0.00022262,2]
[391984407,1761056159024,253.94,0.0002227,2]
[391984410,1761056244236,250.71,0.000228,2]
[391984411,1761056326241,247.52,0.00021955,2]
[391984412,1761056365324,202.0,0.00030137,120]
[391984413,1761056405486,9752.49,0.00024072,2]
[391984414,1761056405513,247.51,0.00024072,2]
[391984416,1761056411382,246.28,0.00021946,2]
[391984417,1761056425829,8177.79,0.00024072,2]
[391984418,1761056499498,327.04,0.00021963,2]
[391984419,1761056510443,-300.0,0.000241,2]
[391984420,1761056510469,-300.0,0.000241,2]
[391984421,1761056510496,-5000.0,0.00024703,2]
[391984422,1761056510522,-244.77308756,0.00024703,2]
[391984423,1761056510550,-600.0,0.00024953,2]
[391984424,1761056516467,300.0,0.000241,2]
[391984425,1761056528019,300.0,0.000241,2]
[391984426,1761056538865,300.0,0.000241,2]
[391984427,1761056551186,300.0,0.000241,2]
[391984428,1761056554077,300.0,0.000241,2]
[391984429,1761056562938,300.0,0.000241,2]
[391984430,1761056566463,300.0,0.000241,2]
[391984431,1761056573417,300.0,0.000241,2]
[391984432,1761056579443,300.0,0.000241,2]
[391984433,1761056583271,408.48,0.0002347,2]
[391984434,1761056584050,300.0,0.000241,2]
[391984435,1761056590278,300.0,0.000241,2]
[391984436,1761056595592,300.0,0.000241,2]
[391984437,1761056601384,300.0,0.000241,2]
[391984439,1761056654299,417.15472785,0.00025,2]
[391984442,1761056667524,451.22,0.0002443,2]
[391984443,1761056750156,445.48,0.00023423,2]
[391984445,1761056773141,1411.39,0.00025,2]
[391984448,1761056835094,439.81,0.00023456,2]
[391984449,1761056839581,188.49,0.00016655,30]
[391984450,1761056840089,376.98,0.00019431,30]
[391984451,1761056840562,565.47,0.00022207,30]
[391984452,1761056841049,753.95,0.00024983,30]
[391984453,1761056869505,8932.55086982,0.00018,2]
[391984454,1761056899443,264.25131477,0.00024,2]
[391984455,1761056899469,2865.78431145,0.00024,2]
[391984456,1761056910941,14547.41266593,0.0002,2]
[391984457,1761056913105,7586.80302262,0.00017,2]
[391984458,1761056913132,20715.88946401,0.00017,2]
[391984459,1761056918507,7023.43030793,0.00018,2]
[391984460,1761056920170,150.99999958,0.00034867,120]
[391984461,1761056921295,543.4990165,0.0002,2]
[391984462,1761056922593,200.54028161,0.0002,2]
[391984463,1761056923561,205.12093604,0.00021,2]
[391984464,1761056923766,1021.83332037,0.000225,2]
[391984465,1761056924060,5329.61644507,0.00023,2]
[391984466,1761056924087,10368.53400702,0.000215,2]
[391984467,1761056925482,2343.68500108,0.0001,2]
[391984468,1761056925752,179.57,0.00017123,30]
[391984469,1761056926256,-220.52147883,0.000235,2]
[391984470,1761056926285,359.14,0.00019977,30]
[391984471,1761056926736,538.71,0.00022831,30]
[391984472,1761056928774,-357.5012945,0.000235,2]
[391984473,1761056945810,-396.045265,0.000235,2]
[391984474,1761056947147,-25.93196167,0.000235,2]